bitfinex/quotes_ETHUSD_20241103
["timestamp","ask_amount","ask_price","bid_price","bid_amount"]
[1730640898785,0.03637831,2447.4,2447.2,0.55]
[1730640899183,0.03637831,2447.4,2447.2,4.63627]
[1730640899385,0.03637831,2447.4,2447.2,0.55]
[1730640900080,0.03637831,2447.4,2447.2,4.63627]
[1730640900780,0.03637831,2447.4,2447.2,0.55]
[1730640901177,4.12236831,2447.4,2446.9,4.08671]
[1730640901394,4.12236831,2447.4,2447.0,0.55]
[1730640901395,1.35717914,2447.4,2447.0,0.55]
[1730640901589,5.44328914,2447.4,2447.0,0.55]
[1730640902627,5.44322914,2447.4,2447.0,0.55]
[1730640903184,9.52930914,2447.4,2447.0,0.55]
[1730640903407,1.45293091,2447.3,2447.0,0.55]
[1730640903836,1.45293091,2447.3,2447.0,4.63661]
[1730640904329,1.45293091,2447.3,2447.0,0.55]
[1730640904330,5.0,2447.2,2447.0,0.55]
[1730640904483,5.0,2447.2,2446.9,0.55]
[1730640904679,9.08633,2447.2,2446.8,0.55]
[1730640905390,9.0863,2447.2,2446.8,4.63695]
[1730640905716,5.0,2447.2,2446.8,4.63695]
[1730640905917,10.075555,2447.2,2446.8,4.63695]
[1730640906102,5.0,2446.9,2446.6,4.0872]
[1730640906709,5.0,2446.9,2446.5,4.08736]
[1730640906915,5.0,2446.9,2446.7,4.08713]
[1730640907412,5.0,2447.2,2446.8,1.339]
[1730640907620,5.0,2447.2,2447.0,4.63649]
[1730640908586,5.0,2447.2,2447.0,0.55]
[1730640908815,4.8928,2447.1,2446.8,0.55]
[1730640908988,0.8063,2447.1,2446.8,4.63693]
[1730640909189,0.8063,2447.1,2446.8,0.55]
[1730640909503,4.89278,2447.1,2446.8,0.55]
[1730640909883,5.0,2446.9,2446.5,4.08733]
[1730640910099,4.08702,2446.8,2446.4,4.08761]
[1730640910308,5.0,2446.6,2446.2,0.789]
[1730640910495,5.0,2446.6,2446.0,4.08821]
[1730640910496,4.0876,2446.5,2446.0,4.08821]
[1730640910710,8.1752,2446.5,2446.1,0.28237157]
[1730640911030,8.1752,2446.5,2446.0,4.08822]
[1730640911031,5.0,2446.3,2446.0,4.08822]
[1730640911525,5.0,2446.3,2445.9,4.87732]
[1730640911730,5.0,2446.3,2446.0,4.08822]
[1730640912088,5.0,2446.3,2446.1,4.0881]
[1730640912283,5.0,2446.3,2446.0,0.55]
[1730640912489,5.0,2446.3,2445.8,4.08863]
[1730640912490,10.802867,2446.3,2445.8,4.08863]
[1730640913239,9.08851,2445.9,2445.6,0.005]
[1730640913444,0.8077,2445.8,2445.6,0.005]
[1730640914456,4.89646,2445.8,2445.6,0.005]
[1730640914611,0.8077,2445.8,2445.6,0.005]
[1730640914935,1.79537913,2445.8,2445.6,0.005]
[1730640915147,5.88403913,2445.8,2445.6,0.005]
[1730640915304,1.79537913,2445.8,2445.6,0.005]
[1730640915743,8.1776,2445.7,2445.6,0.005]
[1730640915914,8.1776,2445.7,2445.6,0.555]
[1730640916249,8.1776,2445.7,2445.6,4.64397]
[1730640916953,8.17542738,2445.7,2445.6,8.44487]
[1730640917450,8.17542738,2445.7,2445.6,5.44487]
[1730640919328,8.17542738,2445.7,2445.6,0.555]
[1730640919529,8.98312738,2445.7,2445.6,0.555]
[1730640919839,8.98312738,2445.7,2445.6,4.64397]
[1730640920952,8.98312738,2445.7,2445.6,0.555]
[1730640921122,8.98312738,2445.7,2445.6,0.005]
[1730640922359,8.17542738,2445.7,2445.6,0.555]
[1730640922857,8.17542738,2445.7,2445.6,0.005]
[1730640923558,8.17542738,2445.7,2445.6,4.64397]
[1730640924543,8.17542738,2445.7,2445.6,6.318172]
[1730640925367,8.17542738,2445.7,2445.6,9.328172]
[1730640925533,8.17542738,2445.7,2445.6,9.318172]
[1730640926132,8.17542738,2445.7,2445.6,5.44487]
[1730640926365,8.17542738,2445.7,2445.6,0.555]
[1730640926583,8.17542738,2445.7,2445.6,0.005]
[1730640926865,12.26422738,2445.7,2445.6,0.005]
[1730640927158,13.07192738,2445.7,2445.6,0.005]
[1730640927330,11.19917612,2445.7,2445.6,0.005]
[1730640929601,15.28797612,2445.7,2445.6,0.005]
[1730640930589,11.19917612,2445.7,2445.6,0.005]
[1730640930768,15.28797612,2445.7,2445.6,0.005]
[1730640931571,18.28797612,2445.7,2445.6,0.005]
[1730640931957,18.38563244,2445.7,2445.6,0.005]
[1730640934015,9.0807837,2445.7,2445.6,0.005]
[1730640934708,9.0807837,2445.7,2445.6,0.555]
[1730640934868,8.2730837,2445.7,2445.6,4.64397]
[1730640936194,8.17542738,2445.7,2445.6,4.64397]
[1730640936369,8.17542738,2445.7,2445.6,5.599458]
[1730640936571,8.26927844,2445.7,2445.6,5.599458]
[1730640937175,8.26927844,2445.7,2445.6,8.599458]
[1730640937367,8.26927844,2445.7,2445.6,9.421258]
[1730640938375,5.0,2446.8,2446.7,4.08713]
[1730640938726,5.0,2447.1,2447.0,4.63663]
[1730640938879,5.0,2447.1,2447.0,0.55]
[1730640939071,5.0,2447.1,2446.9,4.63668]
[1730640939272,0.7895,2447.3,2447.0,4.63663]
[1730640939498,8.1728,2447.2,2447.1,4.63645]
[1730640940679,8.1728,2447.2,2447.1,7.72817294]
[1730640940921,8.1728,2447.2,2447.1,8.46825]
[1730640941590,8.17094958,2447.2,2447.1,8.46825]
[1730640941994,7.31866749,2447.2,2447.1,8.46825]
[1730640942314,7.31866749,2447.2,2447.1,9.724736]
[1730640942973,7.31866749,2447.2,2447.1,9.734736]
[1730640943484,0.7895,2448.3,2447.5,0.8218]
[1730640943485,5.0,2448.3,2447.5,0.8218]
[1730640943821,8.1703,2448.2,2448.1,4.08467]
[1730640943979,8.1703,2448.2,2448.1,4.63467]
[1730640944386,8.1703,2448.2,2448.1,5.39677]
[1730640945530,8.1703,2448.2,2448.1,4.63467]
[1730640946122,8.25308443,2448.2,2448.1,4.63467]
[1730640947038,8.25308443,2448.2,2448.1,0.55]
[1730640947039,9.07839287,2448.2,2448.1,0.55]
[1730640947337,14.07839287,2448.2,2448.0,4.08494]
[1730640947496,14.07839287,2448.2,2448.1,0.55]
[1730640947697,14.07839287,2448.2,2447.9,0.55]
[1730640947926,1.48680929,2448.1,2447.9,0.55]
[1730640948128,8.1703,2448.0,2447.9,0.55]
[1730640948297,8.2531575,2448.0,2447.9,0.55]
[1730640948697,8.2531575,2448.0,2447.9,4.63513]
[1730640949345,8.2531575,2448.0,2447.9,0.55]
[1730640949646,9.80968502,2448.0,2447.9,0.55]
[1730640950137,8.2531575,2448.0,2447.9,4.63513]
[1730640950601,8.2531575,2448.0,2447.9,5.39723]
[1730640952253,8.2531575,2448.0,2447.9,4.63513]
[1730640953716,8.2531575,2448.0,2447.9,4.71682447]
[1730640954541,8.2531575,2448.0,2447.9,4.63513]
[1730640954841,8.2531575,2448.0,2447.9,4.71682431]
[1730640955157,8.2531575,2448.0,2447.9,4.71682432]
[1730640956741,8.2531575,2448.0,2447.9,5.47892432]
[1730640957148,8.2531575,2448.0,2447.9,8.95954546]
[1730640957843,8.2531575,2448.0,2447.9,8.96954546]
[1730640959051,6.73838451,2448.0,2447.9,8.96954546]
[1730640959417,6.73838451,2448.0,2447.9,8.39954546]
[1730640959616,6.73838451,2448.0,2447.9,7.84723]
[1730640960109,6.73838451,2448.0,2447.9,7.85723]
[1730640961326,6.73838451,2448.0,2447.9,8.41723]
[1730640961941,4.69590451,2448.0,2447.9,8.41723]
[1730640962160,6.83e-06,2448.0,2447.9,8.41723]
[1730640962448,0.07840923,2448.0,2447.9,9.667471]
[1730640962656,5.0,2449.1,2448.7,0.55]
[1730640962953,0.07846986,2449.0,2448.7,4.63376]
[1730640963536,0.07846986,2449.0,2448.7,0.55]
[1730640963842,0.7557,2448.9,2448.7,0.55]
[1730640964060,1.33911699,2448.9,2448.8,4.63363]
[1730640964234,1.41758685,2448.9,2448.8,4.63363]
[1730640964573,0.07846986,2448.9,2448.8,4.63363]
[1730640964977,5.0,2449.1,2448.9,4.63342]
[1730640965579,5.0,2449.1,2448.9,0.55]
[1730640966466,0.7557,2449.2,2449.1,0.55]
[1730640966840,0.7557,2449.2,2449.1,4.63313]
[1730640967046,5.0,2449.4,2449.2,4.08294]
[1730640967047,5.7557,2449.4,2449.2,4.08294]
[1730640967244,6.33127,2449.4,2449.2,4.08294]
[1730640967639,1.33127,2449.4,2449.2,4.08294]
[1730640968067,0.7557,2449.4,2449.3,4.63279]
[1730640968271,0.7557,2449.7,2449.6,0.55]
[1730640968829,0.7557,2449.7,2449.6,4.63229]
[1730640969058,4.1421392,2450.2,2449.6,4.63229]
[1730640969059,0.7557,2450.0,2449.8,0.55]
[1730640969779,0.07364135,2449.9,2449.8,0.55]
[1730640970450,0.07364135,2449.9,2449.8,4.63196]
[1730640970979,4.73844549,2449.9,2449.6,0.55]
[1730640971279,5.0,2449.8,2449.5,0.55]
[1730640971441,0.07372202,2449.7,2449.3,0.55]
[1730640971646,9.0821,2449.8,2449.2,4.63283]
[1730640971953,4.66480414,2449.9,2449.0,0.8094]
[1730640971954,5.0,2449.5,2449.0,4.08328]
[1730640972155,0.7557,2449.3,2449.0,4.08322]
[1730640972383,0.7557,2449.3,2449.0,4.0832]
[1730640972579,0.07388332,2449.2,2449.0,8.16641]
[1730640972882,0.07388332,2449.2,2449.1,4.08313]
[1730640973050,5.7557,2449.6,2449.1,4.08313]
[1730640973252,0.64945332,2449.5,2449.2,0.55]
[1730640973464,0.64945332,2449.5,2449.0,0.55]
[1730640973664,0.7557,2449.2,2448.8,4.08362]
[1730640974045,0.7557,2449.2,2448.9,4.08345]
[1730640974046,0.07388332,2449.1,2448.9,4.08345]
[1730640975184,0.07388332,2449.1,2449.0,0.55]
[1730640975852,0.07388332,2449.1,2448.8,0.55]
[1730640976049,0.07388332,2449.1,2448.5,3.8094]
[1730640976050,1.06512165,2449.1,2448.5,3.8094]
[1730640976298,9.08342,2449.0,2448.4,4.08429]
[1730640976591,5.0,2448.7,2448.2,4.08455]
[1730640976890,8.24131048,2448.6,2448.2,4.08455]
[1730640977201,8.24131048,2448.6,2448.4,4.08418]
[1730640977507,9.56544153,2448.6,2448.0,4.91621]
[1730640977652,0.7791,2448.5,2448.1,4.08468]
[1730640978147,8.24122215,2448.4,2448.1,4.08468]
[1730640978376,9.27566747,2448.4,2448.1,4.08468]
[1730640978759,9.27566747,2448.4,2448.2,0.55]
[1730640979564,9.27566747,2448.4,2448.2,4.63453]
[1730640979767,8.24122215,2448.4,2448.3,4.63446]
[1730640981256,8.24122215,2448.4,2448.3,0.55]
[1730640981936,8.24122215,2448.4,2448.3,4.63446]
[1730640982281,7.38913983,2448.4,2448.3,4.63446]
[1730640984291,7.38913983,2448.4,2448.3,4.91389948]
[1730640984616,7.38913983,2448.4,2448.3,5.81375143]
[1730640984825,7.38913983,2448.4,2448.3,6.64505143]
[1730640985034,5.87442818,2448.4,2448.3,9.64505143]
[1730640985334,5.87442818,2448.4,2448.3,10.09217719]
[1730640985493,5.87442818,2448.4,2448.3,11.85442442]
[1730640985686,5.80080603,2448.4,2448.3,13.26288991]
[1730640986303,5.80080603,2448.4,2448.3,12.41425425]
[1730640986622,5.80080603,2448.4,2448.3,13.26727318]
[1730640987296,5.80080603,2448.4,2448.3,12.41425425]
[1730640987508,5.80080603,2448.4,2448.3,13.26761374]
[1730640987727,5.80080603,2448.4,2448.3,13.26773278]
[1730640987930,5.80080603,2448.4,2448.3,13.26772957]
[1730640988783,5.80080603,2448.4,2448.3,11.9813345]
[1730640988987,5.80080603,2448.4,2448.3,13.26861386]
[1730640990123,5.80080603,2448.4,2448.3,13.27120931]
[1730640990556,5.80080603,2448.4,2448.3,6.07767643]
[1730640990721,5.80080603,2448.4,2448.3,4.81204079]
[1730640990931,5.87438206,2448.4,2448.3,4.81204079]
[1730640991354,5.87438206,2448.4,2448.3,4.36429409]
[1730640991863,5.87438206,2448.4,2448.3,4.91429409]
[1730640992368,5.87438206,2448.4,2448.3,4.91438095]
[1730640995280,5.87438206,2448.4,2448.3,4.91452041]
[1730640995484,5.87438206,2448.4,2448.3,4.63446]
[1730640995642,5.87438206,2448.4,2448.3,4.91456504]
[1730640995982,5.87438206,2448.4,2448.3,4.63446]
[1730640996386,0.7932,2448.3,2448.0,4.08486]
[1730640996918,0.07351075,2448.2,2448.0,4.08486]
[1730640997089,5.87431678,2448.2,2447.8,4.08517]
[1730640997292,14.88552603,2448.2,2447.4,0.8243]
[1730640997438,2.35526335,2448.1,2447.7,4.08546]
[1730640997766,5.80080603,2448.0,2447.7,4.08546]
[1730640998301,0.07328788,2447.9,2447.7,4.08546]
[1730640998443,5.80080603,2447.8,2447.7,4.08546]
[1730640998989,5.80080603,2447.8,2447.7,4.63546]
[1730640998990,5.87409391,2447.8,2447.7,4.63546]
[1730640999484,5.87409391,2447.8,2447.7,6.331867]
[1730641000046,5.87409391,2447.8,2447.7,9.41356874]
[1730641000283,5.87409391,2447.8,2447.7,9.331867]
[1730641000578,5.80080603,2447.8,2447.7,9.331867]
[1730641000976,5.87398245,2447.8,2447.7,9.331867]
[1730641002200,5.87398245,2447.8,2447.7,5.45976]
[1730641002401,5.87398245,2447.8,2447.7,4.08546]
[1730641003173,5.86884939,2447.8,2447.7,4.08546]
[1730641003665,5.86884939,2447.8,2447.6,4.08561]
[1730641004100,5.86884939,2447.8,2447.6,4.08555]
[1730641004298,5.86884939,2447.8,2447.7,0.55]
[1730641004498,5.86884939,2447.8,2447.7,4.63546]
[1730641004861,5.86438318,2447.8,2447.7,4.63546]
[1730641005864,5.86438318,2447.8,2447.7,0.55]
[1730641006120,5.0,2447.7,2447.4,4.08583]
[1730641006261,5.86436011,2447.6,2447.4,4.08583]
[1730641007110,5.86436011,2447.6,2447.2,8.17237]
[1730641007277,0.793,2447.5,2447.3,0.55]
[1730641007475,5.86414871,2447.4,2447.3,0.55]
[1730641007788,5.86414871,2447.4,2447.3,4.63613]
[1730641008223,5.86414871,2447.4,2447.3,0.55]
[1730641009524,5.86414871,2447.4,2447.3,4.63613]
[1730641018505,5.86414871,2447.4,2447.3,9.319561]
[1730641022357,5.86414871,2447.4,2447.3,4.63613]
[1730641022646,5.86414871,2447.4,2447.3,4.08613]
[1730641024751,5.86414871,2447.4,2447.3,4.63613]
[1730641027551,5.86414871,2447.4,2447.3,0.55]
[1730641027720,6.64534871,2447.4,2447.3,0.55]
[1730641027927,6.64534871,2447.4,2447.3,4.63613]
[1730641030448,6.64534871,2447.4,2447.3,0.55]
[1730641030765,6.64534871,2447.4,2446.8,0.8112]
[1730641030766,0.7812,2447.2,2446.8,4.08688]
[1730641030978,5.79120676,2447.1,2446.8,4.08688]
[1730641031281,5.86397185,2447.1,2446.3,0.8112]
[1730641031461,5.86397185,2447.1,2447.0,4.08663]
[1730641031641,5.86397185,2447.1,2447.0,5.06681758]
[1730641031833,5.86397185,2447.1,2447.0,4.98509]
[1730641032339,5.79120676,2447.1,2447.0,7.99509]
[1730641032665,5.86150195,2447.1,2447.0,9.36629]
[1730641032964,5.0,2448.0,2447.1,3.55]
[1730641033170,5.0,2448.0,2447.8,0.55]
[1730641033465,0.06784399,2447.9,2447.8,0.55]
[1730641033825,0.7508,2447.8,2447.3,4.08613]
[1730641034032,5.0,2447.7,2447.4,0.55]
[1730641034260,0.7508,2447.6,2447.3,0.55]
[1730641034572,0.7508,2447.6,2447.2,4.0862]
[1730641034573,0.7508,2447.6,2447.5,4.0858]
[1730641034869,0.7508,2447.6,2447.2,4.63619]
[1730641035081,1.32588,2447.6,2447.2,4.08619]
[1730641035236,1.32588,2447.6,2447.3,4.08611]
[1730641035573,1.32588,2447.6,2447.0,4.0865]
[1730641035574,5.41152,2447.6,2447.1,4.08637]
[1730641035752,5.41152,2447.6,2447.2,4.08628]
[1730641035956,5.41152,2447.6,2447.1,4.08646]
[1730641036254,5.0,2447.4,2447.1,4.08646]
[1730641036668,5.0,2447.4,2446.7,7.87831]
[1730641036669,0.7508,2447.3,2446.9,4.0868]
[1730641036848,4.83703,2447.3,2446.8,4.08688]
[1730641037058,4.08632,2447.2,2446.8,4.08688]
[1730641037378,0.7508,2446.9,2446.7,4.08712]
[1730641037960,0.7508,2446.9,2446.4,0.7912]
[1730641038311,0.7508,2446.9,2446.6,4.08714]
[1730641038441,1.32588,2446.9,2446.4,4.08754]
[1730641038787,4.83763,2446.9,2446.4,4.08754]
[1730641038947,0.7508,2446.9,2446.6,4.08722]
[1730641039487,0.7508,2446.9,2446.5,4.08746]
[1730641039792,0.7508,2446.9,2446.5,8.17485]
[1730641040089,5.0,2447.1,2446.8,4.08697]
[1730641040385,0.7508,2447.2,2447.0,4.0865]
[1730641042751,0.7508,2447.2,2446.9,0.55]
[1730641042973,5.0,2447.1,2446.7,4.63713]
[1730641043273,5.0,2447.1,2446.8,4.08696]
[1730641043479,5.0,2447.1,2446.8,4.08687]
[1730641044041,5.0,2447.1,2446.8,8.17376]
[1730641044241,5.0,2447.1,2447.0,4.08663]
[1730641044580,13.1731,2447.1,2447.0,4.08663]
[1730641045683,8.1731,2447.1,2447.0,4.63663]
[1730641047376,8.1731,2447.1,2447.0,0.55]
[1730641047784,8.23873193,2447.1,2447.0,4.63663]
[1730641049873,8.23873193,2447.1,2447.0,0.55]
[1730641050071,8.17341,2447.0,2446.5,4.08735]
[1730641050293,5.0,2446.8,2446.6,4.0873]
[1730641051096,8.23875893,2446.7,2446.5,4.08745]
[1730641051404,8.23017684,2446.7,2446.5,4.08745]
[1730641051889,8.23017684,2446.7,2446.5,4.08738]
[1730641052264,8.23017684,2446.7,2446.4,0.55]
[1730641052460,8.23017684,2446.7,2446.5,4.08745]
[1730641052671,8.23017684,2446.7,2446.6,4.0873]
[1730641052873,8.23017684,2446.7,2446.6,4.6373]
[1730641053074,8.23017684,2446.7,2446.6,9.382175]
[1730641053315,8.17127742,2446.7,2446.6,9.382175]
[1730641053515,8.17127742,2446.7,2446.6,9.66235538]
[1730641053686,8.23834558,2446.7,2446.6,9.66235538]
[1730641054198,8.23834558,2446.7,2446.6,9.66234421]
[1730641054915,8.23834558,2446.7,2446.6,10.1105883]
[1730641055098,8.23834558,2446.7,2446.6,9.66234421]
[1730641056604,8.23834558,2446.7,2446.6,10.11059431]
[1730641056777,8.17127742,2446.7,2446.6,10.11059431]
[1730641057183,8.23850758,2446.7,2446.6,10.11059431]
[1730641057781,8.23850758,2446.7,2446.6,10.11060351]
[1730641058118,8.23850758,2446.7,2446.6,9.382175]
[1730641058320,8.23850758,2446.7,2446.6,10.11058869]
[1730641058529,8.23850758,2446.7,2446.6,10.12058869]
[1730641058685,0.8321,2447.7,2446.8,0.01]
[1730641058891,0.8321,2447.9,2447.7,0.55]
[1730641059097,0.8321,2447.9,2447.8,4.6353]
[1730641059502,0.8321,2447.9,2447.8,0.55]
[1730641060213,0.3,2448.0,2447.8,0.55]
[1730641061418,0.8321,2447.9,2447.6,0.55]
[1730641062622,0.8321,2447.9,2447.8,0.55]
[1730641063032,0.8321,2447.9,2447.6,0.55]
[1730641063243,0.8321,2447.7,2447.1,4.08633]
[1730641063440,5.0,2447.8,2446.9,4.08667]
[1730641063441,5.0,2447.4,2446.9,4.08667]
[1730641063592,4.91834,2447.3,2446.7,4.087]
[1730641063801,5.0,2447.1,2446.7,4.087]
[1730641064020,8.1736,2447.0,2446.7,4.087]
[1730641064801,8.1736,2447.0,2446.8,4.08696]
[1730641065895,8.1736,2447.0,2446.8,0.55]
[1730641066110,8.1736,2447.0,2446.8,4.63689]
[1730641066835,8.1736,2447.0,2446.8,0.55]
[1730641067036,8.1736,2447.0,2446.8,4.63697]
[1730641067037,0.8107,2446.9,2446.8,4.63697]
[1730641067196,8.9843,2446.9,2446.8,4.63697]
[1730641067743,8.1736,2446.9,2446.8,4.63697]
[1730641068995,8.1736,2446.9,2446.8,5.509367]
[1730641070225,8.1736,2446.9,2446.8,6.330367]
[1730641070396,8.1736,2446.9,2446.8,6.61071721]
[1730641070732,8.1736,2446.9,2446.8,6.330367]
[1730641070936,8.1736,2446.9,2446.8,5.45797]
[1730641071840,8.1736,2446.9,2446.8,4.63697]
[1730641075342,8.1736,2446.9,2446.8,4.91743234]
[1730641075750,8.1736,2446.9,2446.8,4.63697]
[1730641076157,8.1736,2446.9,2446.8,4.91743549]
[1730641076445,8.1736,2446.9,2446.8,8.89997904]
[1730641077240,8.1736,2446.9,2446.8,9.72097904]
[1730641077553,8.1736,2446.9,2446.8,10.16970189]
[1730641079331,8.1736,2446.9,2446.8,9.8892364]
[1730641079749,8.1736,2446.9,2446.8,9.44051355]
[1730641080232,8.1736,2446.9,2446.8,9.72105806]
[1730641080613,8.1736,2446.9,2446.8,10.16994152]
[1730641080919,8.1736,2446.9,2446.8,10.87855495]
[1730641081136,8.1736,2446.9,2446.8,11.94145239]
[1730641081758,8.1736,2446.9,2446.8,12.50280501]
[1730641081959,8.1736,2446.9,2446.8,10.73127527]
[1730641082244,8.1736,2446.9,2446.8,11.43991027]
[1730641082944,8.1736,2446.9,2446.8,12.50284252]
[1730641083311,0.8107,2447.8,2447.0,1.371]
[1730641083518,0.8107,2447.8,2447.7,0.55]
[1730641084665,0.8107,2447.8,2447.7,4.63546]
[1730641085251,0.8107,2448.2,2448.0,4.08496]
[1730641085459,0.8107,2448.2,2448.0,4.08483]
[1730641085626,0.8107,2448.2,2448.1,0.55]
[1730641085956,0.8107,2448.4,2448.3,4.63446]
[1730641086867,0.8107,2448.7,2448.3,0.55]
[1730641087020,0.8107,2448.7,2448.5,4.08404]
[1730641087447,0.8107,2449.0,2448.6,4.08384]
[1730641087732,0.8107,2449.0,2448.7,4.08364]
[1730641088436,0.8107,2449.0,2448.9,4.08346]
[1730641088757,0.8107,2449.3,2449.0,4.0832]
[1730641088964,1.800016,2449.3,2448.9,4.63346]
[1730641089329,1.800016,2449.3,2449.1,4.08305]
[1730641089760,0.8107,2449.3,2449.2,4.63296]
[1730641089972,0.8107,2449.5,2449.3,4.08273]
[1730641090125,0.8107,2449.5,2449.4,4.08263]
[1730641090325,8.9758,2449.5,2449.2,4.63296]
[1730641090827,8.9758,2449.5,2449.1,0.55]
[1730641091138,1.305822,2449.4,2449.1,4.6331]
[1730641091437,8.1651,2449.3,2449.1,4.6331]
[1730641092869,8.1651,2449.3,2448.9,4.08337]
[1730641093024,0.87412158,2449.2,2448.7,4.0837]
[1730641093224,8.1651,2449.1,2448.7,4.0837]
[1730641093574,0.90392216,2449.0,2448.7,4.0837]
[1730641093862,8.1651,2448.9,2448.7,4.0837]
[1730641094074,8.22852158,2448.9,2448.8,4.08363]
[1730641094255,8.22852158,2448.9,2448.8,0.55]
[1730641094636,8.22852158,2448.9,2448.5,4.08401]
[1730641094837,0.91324437,2448.8,2448.6,4.08389]
[1730641095039,8.1651,2448.7,2448.6,4.63389]
[1730641095243,8.1651,2448.7,2448.6,4.08389]
[1730641095466,8.22852158,2448.7,2448.6,4.08389]
[1730641095869,8.22852158,2448.7,2448.5,4.08401]
[1730641096181,8.22852158,2448.7,2448.6,4.08396]
[1730641096680,9.14269818,2448.7,2448.5,4.08401]
[1730641097051,8.22852158,2448.7,2448.6,4.08396]
[1730641098840,8.22852158,2448.7,2448.6,4.63396]
[1730641099683,8.22852158,2448.7,2448.6,0.55]
[1730641099887,8.22852158,2448.7,2448.5,4.08401]
[1730641101641,8.22852158,2448.7,2448.6,4.08396]
[1730641103471,8.22852158,2448.7,2448.6,4.63396]
[1730641103780,8.22852158,2448.7,2448.6,5.45096]
[1730641105053,8.22852158,2448.7,2448.6,9.48612955]
[1730641105254,8.22852158,2448.7,2448.6,9.404457]
[1730641106378,8.22852158,2448.7,2448.6,8.45096]
[1730641108184,8.22852158,2448.7,2448.6,4.63396]
[1730641108949,8.22852158,2448.7,2448.6,0.55]
[1730641109250,8.22852158,2448.7,2448.5,4.08401]
[1730641109789,8.22852158,2448.7,2448.5,8.16804]
[1730641110912,8.22852158,2448.7,2448.5,4.08405]
[1730641111113,9.05137374,2448.7,2448.5,4.08405]
[1730641111813,0.7976,2448.6,2448.4,4.08424]
[1730641111975,8.1651,2448.5,2448.4,4.08424]
[1730641112170,8.22706615,2448.5,2448.4,4.08424]
[1730641118549,8.22706615,2448.5,2448.4,4.71592145]
[1730641118715,8.22706615,2448.5,2448.4,5.89594859]
[1730641118922,8.22706615,2448.5,2448.4,5.81426714]
[1730641120245,8.22706615,2448.5,2448.4,4.63424]
[1730641124147,8.22706615,2448.5,2448.4,4.71591992]
[1730641124498,8.22706615,2448.5,2448.4,4.91399923]
[1730641124637,8.22706615,2448.5,2448.4,4.63424]
[1730641124837,8.22706615,2448.5,2448.4,4.91399998]
[1730641126844,8.22706615,2448.5,2448.4,4.36399998]
[1730641127047,13.95940277,2448.5,2448.0,4.08494]
[1730641127243,13.95940277,2448.5,2447.8,0.7697]
[1730641127244,9.87527277,2448.5,2447.8,0.7697]
[1730641127451,9.87527277,2448.5,2448.2,4.08455]
[1730641127674,9.87527277,2448.5,2448.1,4.08475]
[1730641127903,9.87527277,2448.5,2447.9,4.53300202]
[1730641127904,18.04366277,2448.5,2448.0,4.08495]
[1730641128185,18.04366277,2448.5,2447.9,4.08503]
[1730641128186,0.8255,2448.3,2447.9,8.17007]
[1730641128348,8.1651,2448.2,2447.8,4.08528]
[1730641128544,0.88743139,2448.1,2447.7,4.08535]
[1730641128767,8.1651,2448.0,2447.7,4.08535]
[1730641128961,0.06183486,2447.9,2447.7,4.08535]
[1730641129175,8.1651,2447.8,2447.7,4.08535]
[1730641129592,8.22693486,2447.8,2447.6,4.08562]
[1730641129792,8.22693486,2447.8,2447.7,4.08546]
[1730641130163,8.22693486,2447.8,2447.7,4.36568308]
[1730641130505,8.22693486,2447.8,2447.7,4.08546]
[1730641130807,8.22693486,2447.8,2447.6,4.63554]
[1730641131310,8.22693486,2447.8,2447.6,0.55]
[1730641131474,8.22693486,2447.8,2447.7,4.36580224]
[1730641134492,8.22693486,2447.8,2447.7,0.28034224]
[1730641134693,8.22693486,2447.8,2447.6,4.63552]
[1730641134907,8.22693486,2447.8,2447.7,4.08546]
[1730641135278,8.22693486,2447.8,2447.6,4.63552]
[1730641135279,8.22693486,2447.8,2447.3,0.7697]
[1730641135483,8.22693486,2447.8,2447.6,4.0856]
[1730641136917,8.22693486,2447.8,2447.6,4.08561]
[1730641137281,8.22693486,2447.8,2447.7,4.08546]
[1730641138493,8.22693486,2447.8,2447.6,4.08561]
[1730641138708,8.22693486,2447.8,2447.6,8.17122]
[1730641140288,8.22693486,2447.8,2447.7,4.08546]
[1730641140795,8.22693486,2447.8,2447.7,4.63546]
[1730641141201,8.22693486,2447.8,2447.7,4.91559603]
[1730641141403,8.22693486,2447.8,2447.7,5.19573175]
[1730641141705,8.22693486,2447.8,2447.7,4.91559603]
[1730641141885,8.22693486,2447.8,2447.7,5.19571011]
[1730641142085,8.22693486,2447.8,2447.7,4.91559603]
[1730641144829,8.22693486,2447.8,2447.6,4.08561]
[1730641145034,0.817,2447.7,2447.5,0.00861088]
[1730641145257,4.90254,2447.7,2447.5,0.00861088]
[1730641145543,8.22666843,2447.6,2447.5,0.00861088]
[1730641146111,8.22666843,2447.6,2447.3,4.08606]
[1730641146302,8.22666843,2447.6,2447.0,0.7734]
[1730641146303,8.22666843,2447.6,2447.5,4.0858]
[1730641147341,8.22666843,2447.6,2447.4,4.08595]
[1730641147700,8.22666843,2447.6,2447.2,4.08616]
[1730641148055,13.21674527,2447.6,2447.2,4.08616]
[1730641149749,13.21674527,2447.6,2447.3,0.00861159]
[1730641150245,13.21674527,2447.6,2447.0,4.08647]
[1730641150246,4.90296,2447.5,2447.0,4.08647]
[1730641150426,8.1651,2447.4,2447.0,4.08647]
[1730641150617,8.22618945,2447.4,2447.0,4.08647]
[1730641150810,10.12954108,2447.4,2447.0,4.08647]
[1730641152056,10.12954108,2447.4,2446.9,0.55]
[1730641152209,0.817,2446.9,2446.6,4.08718]
[1730641152403,0.80838645,2446.9,2446.6,4.08718]
[1730641152716,8.22599624,2446.8,2446.5,4.08745]
[1730641153942,4.08723,2446.7,2446.3,3.0]
[1730641154130,0.06078414,2446.6,2446.3,3.0]
[1730641154445,8.1651,2446.5,2446.3,4.0878]
[1730641154655,8.1651,2446.5,2446.3,4.08769]